bitfinex/quotes_SOLUSD_20260119
["timestamp","ask_amount","ask_price","bid_price","bid_amount"]
[1768844739604,18.72112596,134.18,134.15,1.23559199]
[1768844739911,18.72112596,134.18,134.15,1.20559202]
[1768844740610,18.72112596,134.18,134.15,4.19304783]
[1768844741906,23.92156277,134.19,134.16,1.26260498]
[1768844745013,42.55186309,134.19,134.16,1.26260498]
[1768844745192,45.5393189,134.19,134.16,1.26260498]
[1768844746288,42.55186309,134.19,134.16,1.23260498]
[1768844750308,42.58199524,134.19,134.16,1.23260498]
[1768844752794,42.58199524,134.19,134.16,1.20260501]
[1768844753232,45.56945105,134.19,134.16,1.20260501]
[1768844756313,0.20972763,134.18,134.15,1.31752373]
[1768844757898,3.19771398,134.16,134.12,1.31752373]
[1768844758101,7.45434215,134.15,134.12,1.31752373]
[1768844760428,7.45434215,134.15,134.13,1.31752373]
[1768844762429,18.63507597,134.16,134.13,1.31752373]
[1768844762430,26.08886249,134.16,134.13,1.31752373]
[1768844762914,26.29873899,134.16,134.13,1.31752373]
[1768844763310,29.28668202,134.16,134.11,2.98794303]
[1768844763727,1.26260262,134.15,134.09,7.4574122]
[1768844763934,1.26260262,134.15,134.11,2.98794303]
[1768844764523,7.45489786,134.14,134.11,2.98794303]
[1768844765027,7.45489786,134.14,134.1,2.98794303]
[1768844765429,7.45489786,134.14,134.11,1.31752373]
[1768844765736,1.26260262,134.13,134.11,1.31752373]
[1768844765928,1.26260262,134.13,134.1,4.30546676]
[1768844766316,1.26260262,134.13,134.11,1.31752373]
[1768844768511,8.71839904,134.13,134.11,1.31752373]
[1768844770032,7.45579642,134.13,134.11,1.31752373]
[1768844770771,1.26260262,134.11,134.05,61.5]
[1768844771033,1.26260262,134.1,134.06,2.98794303]
[1768844771530,1.26260262,134.1,134.06,10.44722068]
[1768844771736,1.26260262,134.11,134.07,2.98794303]
[1768844772740,7.45712155,134.1,134.08,1.31752373]
[1768844773128,7.39712156,134.1,134.08,1.31752373]
[1768844773747,7.33712157,134.1,134.08,1.31752373]
[1768844774362,7.45682499,134.11,134.08,1.31752373]
[1768844774530,7.45628247,134.12,134.09,1.31752373]
[1768844775459,7.45628247,134.12,134.1,1.31752373]
[1768844777349,19.89944729,134.15,134.12,1.31752373]
[1768844778453,7.45516229,134.14,134.12,1.31752373]
[1768844780062,26.09118682,134.15,134.12,1.31752373]
[1768844780847,27.35378944,134.15,134.12,1.31752373]
[1768844786640,7.45434215,134.15,134.12,1.31752373]
[1768844787360,8.68364013,134.15,134.12,1.31752373]
[1768844790282,7.45396654,134.16,134.13,1.33117352]
[1768844790557,7.45396654,134.16,134.14,1.33117352]
[1768844791151,7.45396654,134.16,134.14,4.31911655]
[1768844791739,18.63211118,134.18,134.15,1.33117352]
[1768844791740,1.22929798,134.18,134.15,1.33117352]
[1768844791940,1.22929798,134.19,134.16,1.33117352]
[1768844792261,4.21724101,134.19,134.16,1.33117352]
[1768844792770,1.22929798,134.19,134.16,1.33117352]
[1768844793270,4.21724101,134.19,134.16,1.33117352]
[1768844793770,7.45267551,134.18,134.16,1.33117352]
[1768844795168,8.68197349,134.18,134.16,1.33117352]
[1768844798872,8.68197349,134.18,134.16,4.31911655]
[1768844800170,8.68197349,134.18,134.15,4.31911655]
[1768844800359,1.22929798,134.17,134.15,1.33117352]
[1768844800565,1.22929798,134.17,134.15,4.31911655]
[1768844805361,1.24280284,134.16,134.14,1.34088742]
[1768844807269,8.69678691,134.16,134.14,1.34088742]
[1768844823787,7.45398407,134.16,134.14,1.34088742]
[1768844826496,1.25843071,134.17,134.14,4.32911242]
[1768844826703,1.25843071,134.17,134.15,1.24761373]
[1768844827085,8.71064394,134.19,134.16,4.23583873]
[1768844828185,1.25843071,134.2,134.18,1.24761373]
[1768844828698,1.25843071,134.2,134.17,1.24761373]
[1768844830207,1.25843071,134.19,134.17,1.24761373]
[1768844830601,7.45187061,134.2,134.17,1.24761373]
[1768844830812,7.45187061,134.2,134.18,1.24761373]
[1768844831122,8.71030132,134.2,134.18,1.21761373]
[1768844835724,8.71030132,134.2,134.18,4.20583873]
[1768844837623,8.70967176,134.21,134.18,4.20583873]
[1768844837920,8.70967176,134.21,134.19,2.988225]
[1768844838307,1.25843071,134.21,134.19,1.24761373]
[1768844838514,1.25843071,134.21,134.19,4.23583873]
[1768844839507,8.70947342,134.21,134.19,4.23583873]
[1768844840030,1.25843071,134.21,134.19,4.23583873]
[1768844840204,8.70953131,134.21,134.19,4.23583873]
[1768844841427,8.80915237,134.22,134.2,2.988225]
[1768844841613,8.80915237,134.22,134.2,4.23583873]
[1768844842426,8.80915237,134.22,134.2,2.988225]
[1768844843727,0.1,134.22,134.21,4.29728627]
[1768844844039,8.87176344,134.23,134.21,4.29728627]
[1768844845310,0.1,134.23,134.21,4.29728627]
[1768844845824,1.42186402,134.23,134.21,4.29728627]
[1768844847330,8.87190609,134.23,134.21,4.29728627]
[1768844854322,8.87190609,134.23,134.21,1.30906127]
[1768844854628,8.87190609,134.23,134.2,2.988225]
[1768844856537,8.87190609,134.23,134.2,4.29728627]
[1768844856714,8.87190609,134.23,134.2,1.30906127]
[1768844858140,8.87190609,134.23,134.2,4.29728627]
[1768844861441,8.87190609,134.23,134.2,4.29728627]
[1768844863440,8.87190609,134.23,134.2,1.30906127]
[1768844865015,1.26359321,134.22,134.18,17.52550694]
[1768844865219,1.26359321,134.22,134.18,1.20550694]
[1768844865220,1.26359321,134.21,134.18,1.20550694]
[1768844866738,2.988225,134.21,134.17,1.20550694]
[1768844866919,1.26359321,134.2,134.17,1.20550694]
[1768844867442,7.45212012,134.19,134.16,17.52550694]
[1768844867634,1.26359321,134.18,134.16,17.52550694]
[1768844867935,1.26359321,134.18,134.16,1.20550694]
[1768844868144,1.20359322,134.18,134.15,4.19373194]
[1768844868625,8.65645285,134.18,134.16,1.20550694]
[1768844869638,26.07740377,134.22,134.18,1.20550694]
[1768844869841,2.988225,134.21,134.17,1.20550694]
[1768844870035,1.26359321,134.2,134.17,1.20550694]
[1768844870945,8.71571333,134.19,134.16,1.20550694]
[1768844871128,7.45212012,134.19,134.16,1.20550694]
[1768844871335,8.71571333,134.19,134.16,1.20550694]
[1768844871654,1.26359321,134.18,134.15,4.19373194]
[1768844871828,1.26359321,134.18,134.15,1.20550694]
[1768844874646,8.71655612,134.18,134.15,1.20550694]
[1768844875035,8.65655613,134.18,134.15,1.20550694]
[1768844878848,1.25449975,134.17,134.14,4.30817427]
[1768844879241,1.25449975,134.17,134.15,1.32038176]
[1768844880451,8.70746266,134.18,134.15,1.32038176]
[1768844892664,7.45239828,134.19,134.16,1.32038176]
[1768844893163,8.70689803,134.19,134.16,1.32038176]
[1768844894763,8.70689803,134.19,134.16,4.30817427]
[1768844895159,8.70689803,134.19,134.16,1.32038176]
[1768844895672,8.64689804,134.19,134.16,1.32038176]
[1768844895874,1.25449975,134.21,134.18,1.32038176]
[1768844897076,1.25449975,134.21,134.18,4.30817427]
[1768844897565,1.25449975,134.2,134.18,4.30817427]
[1768844897957,1.25449975,134.2,134.18,1.32038176]
[1768844898158,1.25449975,134.2,134.17,4.30817427]
[1768844900775,8.70630986,134.2,134.17,4.30817427]
[1768844901279,8.70630986,134.2,134.17,1.32038176]
[1768844908483,7.45181011,134.2,134.17,1.32038176]
[1768844908686,8.67223893,134.2,134.17,1.32038176]
[1768844909384,1.22042882,134.19,134.17,1.32038176]
[1768844911368,7.45251212,134.19,134.17,1.32038176]
[1768844914799,8.67227016,134.2,134.18,1.28495692]
[1768844920012,7.45056941,134.22,134.19,1.28495692]
[1768844920186,7.45056941,134.22,134.2,1.28495692]
[1768844920809,8.72189812,134.22,134.2,1.28495692]
[1768844921507,1.27132871,134.21,134.18,4.3109804]
[1768844922113,1.27132871,134.21,134.19,1.32318789]
[1768844922696,1.27132871,134.21,134.19,4.3109804]
[1768844926114,0.1,134.23,134.21,1.32318789]
[1768844926405,1.37132871,134.23,134.21,4.2809804]
[1768844927309,1.37132871,134.23,134.21,1.29318789]
[1768844929717,8.82134157,134.23,134.21,1.29318789]
[1768844930307,8.82134157,134.23,134.21,1.26318789]
[1768844932324,8.82134157,134.23,134.2,4.3109804]
[1768844934835,1.37132871,134.23,134.2,4.3109804]
[1768844935037,0.1,134.23,134.21,4.20347145]
[1768844936124,0.1,134.23,134.22,2.98779251]
[1768844936309,0.1,134.23,134.22,2.95779251]
[1768844937116,0.1,134.23,134.22,4.17347145]
[1768844937801,1.33535994,134.25,134.22,4.17347145]
[1768844938002,1.33535994,134.25,134.23,2.98779251]
[1768844938226,1.33535994,134.25,134.23,2.95779251]
[1768844939030,0.1,134.25,134.24,1.21567894]
[1768844939212,0.1,134.25,134.24,1.18567894]
[1768844939530,0.1,134.25,134.23,2.98394478]
[1768844941226,0.1,134.25,134.23,4.19962372]
[1768844941615,1.33535994,134.25,134.23,4.19962372]
[1768844942223,1.33535994,134.25,134.22,2.98394478]
[1768844942410,1.33535994,134.25,134.22,4.19962372]
[1768844945841,8.78418942,134.25,134.22,1.21567894]
[1768844949633,8.78418942,134.25,134.22,4.19962372]
[1768844958862,8.78418942,134.25,134.22,1.21567894]
[1768844959042,8.78418942,134.25,134.22,4.19962372]
[1768844960172,8.78418942,134.25,134.22,1.21567894]
[1768844960335,8.78418942,134.25,134.22,4.19962372]
[1768844960862,1.23535994,134.24,134.2,1.21567894]
[1768844961035,1.23535994,134.23,134.2,1.21567894]
[1768844961234,1.23535994,134.22,134.19,1.21567894]
[1768844961835,1.23535994,134.22,134.18,17.53567894]
[1768844962035,1.23535994,134.22,134.18,20.51962372]
[1768844962338,1.23535994,134.22,134.18,17.53567894]
[1768844962535,1.23535994,134.22,134.18,4.19962372]
[1768844963363,1.2161233,134.2,134.17,1.30041877]
[1768844963939,1.2161233,134.19,134.16,1.30041877]
[1768844965663,8.66833944,134.19,134.16,1.30041877]
[1768844965969,11.65228422,134.19,134.16,1.30041877]
[1768844966170,8.66833944,134.19,134.16,1.30041877]
[1768844968947,11.65228422,134.19,134.16,1.30041877]
[1768844969164,8.66833944,134.19,134.16,1.30041877]
[1768844971900,11.65228422,134.19,134.16,1.30041877]
[1768844972504,1.2161233,134.19,134.16,4.28436355]
[1768844972704,8.66828777,134.19,134.16,4.28436355]
[1768844973579,8.66828777,134.19,134.16,1.30041877]
[1768844973981,8.66657777,134.22,134.17,1.30041877]
[1768844974195,1.2161233,134.21,134.19,1.30041877]
[1768844977589,8.66736594,134.21,134.18,1.30041877]
[1768844977781,1.2161233,134.2,134.18,1.30041877]
[1768844977983,1.15612331,134.2,134.18,1.30041877]
[1768844978299,7.45124264,134.21,134.18,1.30041877]
[1768844979904,8.66736594,134.21,134.18,1.30041877]
[1768844984031,1.2161233,134.21,134.18,4.28436355]
[1768844985212,7.45071162,134.22,134.19,4.29111887]
[1768844985213,8.71393372,134.22,134.19,4.29111887]
[1768844986448,8.71393372,134.22,134.19,1.30717409]
[1768844989515,7.45071162,134.22,134.19,1.30717409]
[1768844989742,1.2632221,134.21,134.18,10.43642811]
[1768844989940,11.6978785,134.22,134.19,1.30717409]
[1768844991643,8.71393372,134.22,134.19,1.30717409]
[1768844992332,11.6978785,134.22,134.19,1.30717409]
[1768844992722,8.71393372,134.22,134.19,1.30717409]
[1768844995742,1.25920832,134.21,134.18,7.45248333]
[1768844995945,1.25920832,134.21,134.18,1.32163421]
[1768844996136,1.25920832,134.21,134.18,4.30557899]
[1768844997769,1.25920832,134.21,134.18,1.32163421]
[1768844999969,1.25920832,134.21,134.19,1.32163421]
[1768845001069,1.25920832,134.22,134.19,1.32163421]
[1768845002172,8.70974113,134.22,134.19,1.32163421]
[1768845002348,1.25920832,134.21,134.19,1.32163421]
[1768845002668,1.25920832,134.21,134.18,11.76024068]
[1768845002864,1.25920832,134.21,134.19,1.32163421]
[1768845006378,1.25920832,134.21,134.17,25.09461974]
[1768845006379,1.25920832,134.2,134.17,25.09461974]
[1768845006567,1.25920832,134.2,134.17,25.09484944]
[1768845006750,1.25920832,134.2,134.17,17.64163421]
[1768845007681,1.25920832,134.2,134.17,25.09484212]
[1768845011479,1.25920832,134.2,134.17,17.64163421]
[1768845011973,1.25920832,134.2,134.17,1.32163421]
[1768845012158,1.25920832,134.19,134.17,1.32163421]
[1768845012363,1.25920832,134.19,134.16,8.77535796]
[1768845016967,8.71148914,134.19,134.16,1.32163421]
[1768845017458,8.71148914,134.19,134.16,0.82163421]
[1768845019584,1.25920832,134.18,134.16,0.82163421]
[1768845020082,1.25920832,134.18,134.15,17.64163421]
[1768845021361,8.7119855,134.18,134.15,17.64163421]
[1768845023583,8.7119855,134.18,134.15,16.32]
[1768845023788,8.65198551,134.18,134.16,1.3049324]
[1768845026678,8.65198551,134.18,134.15,20.61092038]
[1768845027687,8.65198551,134.18,134.15,17.6249324]
[1768845029067,8.65198551,134.18,134.16,1.3049324]
[1768845029268,1.19920833,134.18,134.16,1.3049324]
[1768845030067,8.66562744,134.19,134.16,1.3049324]
[1768845030273,1.21322547,134.19,134.16,1.3049324]
[1768845032090,1.21322547,134.19,134.17,1.3049324]
[1768845034885,11.651027,134.2,134.17,1.3049324]
[1768845035189,11.65016798,134.22,134.18,4.29092038]
[1768845035372,1.21322547,134.21,134.18,4.29092038]
[1768845035572,1.21322547,134.21,134.18,1.3049324]
[1768845036085,8.66434143,134.21,134.18,1.3049324]
[1768845037309,1.21322547,134.2,134.18,1.3049324]
[1768845038410,8.66434143,134.21,134.18,1.3049324]
[1768845038889,7.45111596,134.21,134.18,1.3049324]
[1768845039095,1.21322547,134.2,134.18,1.3049324]
[1768845039894,8.66434143,134.21,134.18,1.3049324]
[1768845040594,8.66434143,134.21,134.18,4.29092038]
[1768845052999,8.66434143,134.21,134.18,1.3049324]
[1768845053200,8.66434143,134.21,134.18,4.29092038]
[1768845053515,8.66434143,134.21,134.18,1.3049324]
[1768845053702,8.66434143,134.21,134.18,4.29092038]
[1768845060908,8.66434143,134.21,134.18,4.29104336]
[1768845066615,7.45111596,134.21,134.18,4.29104336]
[1768845066809,1.20367602,134.2,134.18,4.29104336]
[1768845067106,1.14367603,134.2,134.18,4.29104336]
[1768845069113,8.59525136,134.2,134.18,4.29104336]
[1768845070324,1.20367602,134.2,134.15,62.73015283]
[1768845070620,1.20367602,134.18,134.15,1.23015283]
[1768845070913,1.14367603,134.18,134.15,1.23015283]
[1768845071500,2.98611096,134.2,134.16,1.23015283]
[1768845071707,29.06464459,134.21,134.16,1.23015283]
[1768845072517,29.06464459,134.21,134.16,8.68385985]
[1768845072817,1.20367602,134.19,134.16,8.68385985]
[1768845073906,1.14367603,134.19,134.16,8.68385985]
[1768845074618,10.43734477,134.21,134.17,1.23015283]
[1768845076010,1.20367602,134.2,134.17,1.23015283]
[1768845078023,8.65536533,134.2,134.17,1.23015283]
[1768845081710,7.45128111,134.21,134.18,1.23015283]
[1768845082033,8.65495713,134.21,134.18,1.23015283]
[1768845085533,1.20433176,134.23,134.2,1.20650771]
[1768845086431,8.65451996,134.23,134.2,1.20650771]
[1768845088637,11.63981584,134.24,134.21,1.20650771]
[1768845088821,1.20433176,134.24,134.21,4.19261867]
[1768845089722,8.75345762,134.25,134.22,1.20650771]
[1768845090224,1.30433176,134.25,134.22,4.19261867]
[1768845092940,0.1,134.26,134.24,4.19261867]
[1768845093152,1.20433176,134.27,134.25,4.19261867]
[1768845095239,1.20433176,134.27,134.25,2.98611096]
[1768845097546,1.20433176,134.29,134.26,4.19261867]
[1768845097745,1.20433176,134.29,134.27,2.98611096]
[1768845097945,1.20433176,134.29,134.26,1.20650771]
[1768845097946,1.20433176,134.29,134.26,4.19261867]
[1768845098839,1.20433176,134.29,134.26,11.64082455]
[1768845100030,1.30433176,134.3,134.27,4.19261867]
[1768845100225,1.30433176,134.3,134.27,4.16261867]
[1768845100744,1.30433176,134.3,134.27,1.14650771]
[1768845102846,1.30433176,134.3,134.27,11.58018729]
[1768845103533,0.1,134.3,134.28,4.31900678]
[1768845103763,0.1,134.3,134.29,2.98611096]
[1768845104055,0.1,134.3,134.29,2.95611096]
[1768845104851,0.1,134.3,134.28,2.98611096]
[1768845105161,1.30096018,134.29,134.14,37.27244272]
[1768845105331,4.28707114,134.25,134.2,2.98611096]
[1768845105733,1.30096018,134.25,134.22,1.33289582]
[1768845107663,4.28707114,134.25,134.22,1.33289582]
[1768845108463,11.73619363,134.25,134.22,1.33289582]
[1768845111236,4.28707114,134.25,134.22,1.33289582]
[1768845113166,4.28707114,134.25,134.21,1.21128574]
[1768845113167,4.20126332,134.24,134.21,1.21128574]
[1768845116553,1.21515236,134.24,134.21,1.21128574]
[1768845116862,4.20126332,134.24,134.21,1.21128574]
[1768845117167,1.21515236,134.24,134.21,8.66228186]
[1768845117354,4.20126332,134.24,134.21,8.66228186]
[1768845119567,4.20126332,134.24,134.21,1.21128574]
[1768845119568,2.98611096,134.23,134.21,1.21128574]
[1768845120571,1.21515236,134.24,134.21,1.21128574]
[1768845120864,4.20126332,134.24,134.21,1.21128574]
[1768845121100,11.65065998,134.24,134.21,1.21128574]
[1768845121763,4.20126332,134.23,134.2,1.21128574]
[1768845122060,2.98611096,134.21,134.19,1.21128574]
[1768845122844,2.98649955,134.21,134.19,1.21128574]
[1768845123061,8.66454902,134.24,134.2,1.21128574]
[1768845123273,11.65104857,134.24,134.2,1.21128574]
[1768845123643,2.98649955,134.23,134.2,1.21128574]
[1768845123844,2.48649955,134.23,134.2,1.21128574]
[1768845124047,3.70165191,134.23,134.2,1.21128574]
[1768845130172,11.15163352,134.23,134.2,1.21128574]
[1768845130469,2.98649955,134.22,134.2,1.21128574]
[1768845131670,11.65163352,134.23,134.2,1.21128574]
[1768845136966,8.66513397,134.23,134.2,1.21128574]
[1768845137175,11.59163349,134.23,134.2,1.21128574]
[1768845137354,11.53163348,134.23,134.2,1.21128574]
[1768845138260,8.54513393,134.23,134.2,1.21128574]
[1768845138577,11.53163348,134.23,134.2,1.21128574]
[1768845139870,11.47163347,134.23,134.2,1.21128574]
[1768845140069,2.98649955,134.25,134.21,1.21128574]
[1768845140277,4.20165191,134.25,134.21,1.21128574]
[1768845141081,4.20165191,134.25,134.22,1.21128574]
[1768845141381,1.21515236,134.25,134.22,1.21128574]
[1768845141977,8.66403785,134.25,134.22,1.21128574]
[1768845142563,11.6505374,134.25,134.22,1.21128574]
[1768845144278,1.2180095,134.24,134.21,1.3269054]
[1768845144451,2.98649955,134.23,134.21,1.3269054]
[1768845145263,11.65398008,134.24,134.21,1.3269054]
[1768845146281,8.66748053,134.24,134.21,1.3269054]
[1768845146476,11.65398008,134.24,134.21,1.3269054]
[1768845150782,1.2180095,134.23,134.2,25.09841725]
[1768845151461,1.2180095,134.23,134.2,8.77841725]
[1768845152362,1.2180095,134.23,134.21,1.3269054]
[1768845155495,8.66748053,134.24,134.21,1.3269054]
[1768845155790,11.65398008,134.24,134.21,1.3269054]
[1768845157674,8.66748053,134.24,134.21,1.3269054]
[1768845161085,11.65398008,134.24,134.21,1.3269054]
[1768845163689,8.66748053,134.24,134.21,1.3269054]
[1768845163991,11.65398008,134.24,134.21,1.3269054]
[1768845166594,4.33883294,134.23,134.2,1.32727052]
[1768845166887,4.33883294,134.22,134.19,1.32727052]
[1768845167891,4.33883294,134.23,134.2,1.32727052]
[1768845168887,11.78883431,134.23,134.2,1.32727052]
[1768845178699,2.98649955,134.22,134.2,1.32727052]
[1768845180102,11.78883431,134.23,134.2,1.32727052]
[1768845183293,4.33883294,134.23,134.2,1.32727052]
[1768845184910,4.33811138,134.23,134.2,1.32727052]
[1768845186515,7.44959315,134.24,134.21,1.33479736]
[1768845186806,11.74813799,134.24,134.21,1.33479736]
[1768845191727,8.76236,134.24,134.21,1.33479736]
[1768845191913,11.74813799,134.24,134.21,1.33479736]
[1768845199679,2.98577799,134.23,134.21,1.33479736]
[1768845199890,4.29854484,134.23,134.2,1.33479736]
[1768845201276,4.29854484,134.23,134.2,8.78634813]
[1768845204291,1.31276685,134.23,134.21,1.29300773]
[1768845204586,4.29854484,134.23,134.21,1.29300773]
[1768845205475,4.32364407,134.22,134.19,8.74484803]
[1768845206175,4.32364407,134.22,134.2,1.29300773]
[1768845206394,2.98577799,134.22,134.2,1.29300773]
[1768845206690,1.33786608,134.23,134.2,1.29300773]
[1768845207091,4.32364407,134.23,134.2,1.29300773]
[1768845208392,1.33786608,134.23,134.2,8.7445082]
[1768845208694,11.77323722,134.24,134.21,1.29300773]
[1768845208880,11.71323721,134.24,134.21,1.29300773]
[1768845212877,4.32364407,134.26,134.22,1.29300773]
[1768845214606,11.77211916,134.26,134.22,1.29300773]
[1768845216606,8.78634117,134.26,134.22,1.29300773]
[1768845216906,11.77211916,134.26,134.23,1.29300773]
[1768845221920,4.30892204,134.24,134.2,1.28652625]
[1768845222111,2.98577799,134.22,134.2,1.28652625]
[1768845223491,4.30892204,134.24,134.2,1.28652625]
[1768845223808,1.32314405,134.24,134.21,1.28652625]
[1768845226216,7.44934445,134.24,134.21,1.28652625]
[1768845226422,8.7724885,134.24,134.21,1.28652625]
[1768845228191,11.75826649,134.24,134.21,1.28652625]
[1768845230496,2.98577799,134.23,134.21,1.28652625]
[1768845230818,4.30892204,134.23,134.21,1.28652625]
[1768845231610,2.98577799,134.23,134.21,1.28652625]
[1768845232421,10.43579457,134.23,134.21,1.28652625]
[1768845234821,7.45001658,134.23,134.21,1.28652625]
[1768845241610,11.69687275,134.23,134.2,1.32414672]
[1768845247013,11.6969167,134.23,134.2,1.32414672]
[1768845249748,8.71109476,134.23,134.2,1.32414672]
[1768845249943,1.26107818,134.21,134.18,1.32414672]
[1768845250123,4.24690012,134.2,134.18,1.32414672]
[1768845250322,2.98582194,134.2,134.18,1.32414672]
[1768845250523,4.24690012,134.2,134.18,1.32414672]
[1768845251545,11.69848542,134.2,134.18,1.32414672]
[1768845251732,8.71266348,134.2,134.18,1.32414672]
[1768845252041,7.4515853,134.2,134.18,1.32414672]
[1768845253224,11.6979682,134.21,134.18,1.32414672]
[1768845259929,7.45068412,134.22,134.19,1.32414672]
[1768845260128,4.24690012,134.22,134.19,1.32414672]
[1768845260742,11.69736044,134.22,134.19,1.32414672]
[1768845261552,1.26107818,134.24,134.2,1.32414672]
[1768845261754,2.98582194,134.24,134.2,1.32414672]
[1768845262058,1.26107818,134.23,134.2,1.32414672]
[1768845263160,8.71108194,134.23,134.2,1.32414672]
[1768845263539,11.69690388,134.23,134.2,1.32414672]
[1768845272446,4.23343694,134.22,134.2,1.32414672]
[1768845272865,2.98582194,134.22,134.2,1.32414672]
[1768845276463,11.68412718,134.22,134.19,1.30648345]
[1768845276856,10.43651218,134.22,134.19,1.30648345]
[1768845277058,2.98582194,134.22,134.19,1.30648345]
[1768845279367,10.43641576,134.22,134.19,1.30648345]
[1768845279665,11.68403076,134.22,134.19,1.30648345]
[1768845280166,10.43641576,134.22,134.19,1.30648345]
[1768845285949,7.45059382,134.22,134.19,1.30648345]
[1768845288876,11.79254675,134.22,134.19,1.30648345]
[1768845290276,8.80672481,134.22,134.19,1.30648345]
[1768845296261,11.79254675,134.22,134.19,1.30648345]
[1768845296878,1.30189205,134.21,134.19,1.30648345]
[1768845297069,1.30189205,134.21,134.18,17.59935236]
[1768845298084,1.30189205,134.21,134.19,1.27935236]
[1768845302274,8.7531228,134.21,134.18,17.59935236]
[1768845302475,11.73894474,134.21,134.18,17.59935236]
[1768845303297,11.73894474,134.21,134.18,1.27935236]
[1768845308991,11.73975276,134.21,134.18,1.27935236]
[1768845313798,4.28852201,134.21,134.18,1.27935236]
[1768845314396,1.30189205,134.23,134.2,1.27935236]
[1768845314695,4.28852201,134.23,134.2,1.27935236]
[1768845315297,11.73845492,134.23,134.2,1.27935236]
[1768845320183,8.75182496,134.23,134.2,1.27935236]
[1768845320386,11.73845492,134.23,134.2,1.27935236]
[1768845321299,8.75182496,134.23,134.2,1.27935236]
[1768845321498,11.73845492,134.23,134.2,1.27935236]
[1768845326300,8.75182496,134.23,134.2,1.27935236]
[1768845327008,10.4361728,134.24,134.21,1.27550865]
[1768845327194,10.4361728,134.24,134.22,1.27550865]
[1768845327195,7.44954284,134.24,134.22,1.27550865]
[1768845327882,8.72680337,134.24,134.22,1.27550865]
[1768845330402,7.44954284,134.24,134.22,1.27550865]
[1768845330585,8.72680337,134.24,134.22,1.27550865]
[1768845332811,11.71343333,134.24,134.22,1.27550865]
[1768845333908,8.72680337,134.24,134.22,1.27550865]
[1768845335202,8.72680337,134.24,134.21,1.27550865]
[1768845340404,7.44954284,134.24,134.21,1.27550865]
[1768845342698,8.72131279,134.24,134.21,1.27550865]
[1768845353605,1.27176995,134.24,134.21,7.45095058]
[1768845353814,1.26976827,134.25,134.22,1.30322449]
[1768845354611,1.26976827,134.25,134.22,1.2732245]
[1768845359912,1.26976827,134.25,134.22,1.24322451]
[1768845361430,8.7185596,134.25,134.22,1.24322451]
[1768845361929,11.70518956,134.25,134.22,1.24322451]
[1768845362306,8.7185596,134.25,134.22,1.24322451]
[1768845363117,8.7185596,134.25,134.22,1.21322452]
[1768845365340,4.25639823,134.24,134.21,1.30322449]
[1768845365721,1.26976827,134.24,134.21,1.30322449]
[1768845366744,1.26976827,134.24,134.21,1.27322452]
[1768845366745,8.71917164,134.24,134.21,1.27322452]
[1768845367616,1.26976827,134.22,134.19,23.77196487]
[1768845367815,4.25639823,134.23,134.19,23.77196487]
[1768845368242,1.26976827,134.23,134.19,23.77196487]
[1768845368764,1.26976827,134.23,134.2,1.30322449]
[1768845370541,4.25537253,134.23,134.2,1.30322449]
[1768845372540,11.70530624,134.23,134.2,1.30322449]
[1768845372730,8.71970198,134.23,134.2,1.30322449]
[1768845373041,11.70530624,134.23,134.2,1.2732245]
[1768845374348,11.70530624,134.23,134.2,1.24322451]
[1768845376047,1.26976827,134.2,134.17,85.27290892]
[1768845376281,1.26976827,134.2,134.17,23.77290892]
[1768845376552,1.26976827,134.2,134.17,25.07613341]
[1768845376931,1.26976827,134.2,134.18,1.30322449]
[1768845380651,11.70596714,134.22,134.18,8.75579048]
[1768845381035,11.70596714,134.22,134.19,1.30322449]
[1768845381238,8.72036288,134.22,134.19,1.27322449]
[1768845384242,1.26976827,134.22,134.19,1.27322449]
[1768845384433,1.26976827,134.22,134.19,1.24322449]
[1768845386759,1.26976827,134.22,134.19,1.2132245]
[1768845387856,4.25537253,134.22,134.19,1.2132245]
[1768845389863,11.70584479,134.22,134.19,1.2132245]
[1768845390156,8.72024053,134.22,134.19,1.2132245]
[1768845390652,11.70584479,134.22,134.19,1.2132245]
[1768845391640,8.72024053,134.22,134.19,1.2132245]
[1768845391952,11.70584479,134.22,134.19,1.2132245]
[1768845394260,11.70584479,134.22,134.19,1.1832245]
[1768845397757,1.26976827,134.22,134.19,1.1832245]
[1768845399362,4.25537253,134.22,134.19,1.1832245]
[1768845400862,1.26976827,134.22,134.19,1.1832245]
[1768845402245,1.26976827,134.22,134.2,1.35693256]
[1768845402467,11.75247773,134.23,134.2,1.35693256]
[1768845414878,0.1,134.3,134.28,1.27159567]
[1768845415079,0.1,134.33,134.32,1.56576377]
[1768845415267,0.1,134.33,134.3,2.98560426]
[1768845415577,0.1,134.33,134.31,2.98560426]
[1768845415782,0.1,134.33,134.31,4.25719353]
[1768845415980,0.1,134.33,134.31,2.98560426]
[1768845416169,7.54439519,134.33,134.3,4.25719353]
[1768845416966,0.1,134.33,134.3,4.25719353]
[1768845417160,1.46576377,134.33,134.3,4.25719353]
[1768845418868,8.91025143,134.33,134.3,4.25719353]
[1768845419486,8.91025143,134.33,134.31,2.98560426]
[1768845420387,1.36576377,134.31,134.28,1.27159567]
[1768845420691,1.36576377,134.29,134.26,4.25719353]
[1768845421486,1.36576377,134.29,134.27,2.98560426]